Cogmind - Beta 13 X2 @@@ ROGUE MODE // 2024.01.27 @ 20:18:42 Player: Minty Result: Destroyed by P-70 Sage with Tesla Rifle Performance ------------- Evolutions (5) 2500 Regions Visited (16) 3200 Robots Destroyed (103) 515 Value Destroyed (5109) 5109 Prototype IDs (29) 580 Alien Tech Used (0) 0 Bonus (3111) 3111 TOTAL SCORE: 15015 Bonus ------- High Alert Combat Kills 228 Follower Combat Kills 749 Entered Garrisons 600 Used RIF Installer 1000 Entered DSFs 500 Aligned with FarCom 300 Friendly Fire -266 Cogmind --------- Core Integrity 0/1000 Matter 71/300 Energy 100/100 System Corruption 59% Temperature Cool (0) Movement Core (50) Location -5/Factory Parts ------- > --- POWER (1) -------- (None) > --- PROPULSION (5) --- (None) > --- UTILITY (7) ------ (None) > --- WEAPON (4) ------- (None) > --- INVENTORY (5) ---- Improved Heat Sink Relay Coupler [Duelist] (19) Relay Coupler [Specialist] (20) Gatling Laser Peak State ------------ > --- POWER ------------ Improved Deuterium Engine > --- PROPULSION ------- Light Treads Light Treads Medium Treads > --- UTILITY ---------- Improved Heat Sink Improved Cooling System High-capacity Storage Unit Core Analyzer Improved Particle Charger Hardened Heavy Armor Plating > --- WEAPON ----------- Arc Projector Gatling Laser Improved Spread Laser Cooled Plasma Rifle > --- INVENTORY -------- Relay Coupler [NC] Relay Coupler [Grunt] Relay Coupler [Grunt] Relay Coupler [Duelist] Relay Coupler [Duelist] Relay Coupler [Sentry] Relay Coupler [Specialist] Relay Coupler [Specialist] Lightning Gun Gatling Laser Gauss Rifle Heavy Machine Gun Rocket Array Improved Remote Datajack Longsword +1 Segregator Trap Fusion Bomb Trap Fusion Bomb Trap [Rating: 61] Favorites ----------- Power Improved Deuterium Engine Engine Improved Deuterium Engine Power Core Reinforced Fission Core Propulsion Light Treads Treads Light Treads Leg Aluminum Leg Utility High-capacity Storage Unit Device Improved Heat Sink Storage High-capacity Storage Unit Processor Core Analyzer Hackware Relay Coupler [NC] Protection Hardened Heavy Armor Plating Weapon Medium Laser Energy Gun Medium Laser Ballistic Gun Gauss Rifle Ballistic Cannon Gauss Cannon Launcher Grenade Launcher Special Weapon Improved Remote Datajack Slashing Weapon Longsword +1 Special Melee Weapon Datajack Build | -11 -10 -10 -10 -9 -8 -8 -8 -8 -7 -6 -6 -6 -6 -5 -5 -5 ------- Run | Yrd Mat Min Exi Min Mat Gar Mat Gar Fac Fac Gar Fac DSF Fac Was Fac Slots Evolved 10 | . . . . . 4 . . . 2 2 . . . 2 . . Power . | . . . . . . . . . . . . . . . . . Propulsion 3 | . . . . . 3 . . . . . . . . . . . Utility 5 | . . . . . 1 . . . 2 1 . . . 1 . . Weapon 2 | . . . . . . . . . . 1 . . . 1 . . Parts Attached 140 | . 4 . . 2 21 4 . 20 31 1 14 1 11 2 3 26 Power 7 | . . . . 2 . 1 . . 2 . . . . . . 2 Engine 6 | . . . . 2 . 1 . . 2 . . . . . . 1 Core 1 | . . . . . . . . . . . . . . . . 1 Reactor . | . . . . . . . . . . . . . . . . . Propulsion 33 | . 2 . . . 7 . . 8 4 . 2 . . . . 10 Treads 18 | . 2 . . . 7 . . 3 4 . 2 . . . . . Leg 15 | . . . . . . . . 5 . . . . . . . 10 Wheel . | . . . . . . . . . . . . . . . . . Hover . | . . . . . . . . . . . . . . . . . Flight . | . . . . . . . . . . . . . . . . . Utility 44 | . 2 . . . 5 3 . 3 13 . 7 1 2 1 2 5 Device 15 | . . . . . 2 3 . 1 4 . 1 1 . 1 1 1 Storage 1 | . 1 . . . . . . . . . . . . . . . Processor 6 | . 1 . . . . . . . 3 . 1 . . . . 1 Hackware 12 | . . . . . . . . 2 4 . 3 . 1 . 1 1 Protection 10 | . . . . . 3 . . . 2 . 2 . 1 . . 2 Artifact . | . . . . . . . . . . . . . . . . . Weapon 56 | . . . . . 9 . . 9 12 1 5 . 9 1 1 9 Energy Gun 24 | . . . . . 2 . . 6 4 . 1 . 7 1 . 3 Energy Cannon . | . . . . . . . . . . . . . . . . . Ballistic Gun 9 | . . . . . . . . . 4 1 1 . 1 . . 2 Ballistic Cannon 4 | . . . . . 2 . . 2 . . . . . . . . Launcher 6 | . . . . . 3 . . . . . . . . . . 3 Special Weapon 9 | . . . . . 1 . . . 3 . 2 . 1 . 1 1 Impact Weapon . | . . . . . . . . . . . . . . . . . Slashing Weapon 3 | . . . . . 1 . . 1 . . 1 . . . . . Piercing Weapon . | . . . . . . . . . . . . . . . . . Special Melee Weapon 1 | . . . . . . . . . 1 . . . . . . . Unidentified Prototypes 3 | . . . . . 1 . . . 1 . . . . 1 . . Corrupted Parts 7 | . . . . . . . . . 1 . . . . . . 6 System Corruption 33 | . . . . . . . . . 2 . . . . . . 31 Parts Lost 52 | . . . . 1 6 2 . 12 2 . 2 . 1 . . 26 Power 6 | . . . . 1 . 1 . 1 . . . . . . . 3 Propulsion 25 | . . . . . 4 1 . 6 . . 1 . 1 . . 12 Utility 6 | . . . . . . . . 1 . . 1 . . . . 4 Weapon 15 | . . . . . 2 . . 4 2 . . . . . . 7 Highest Loss Streak 8 | . . . . 1 4 1 . 6 2 . 1 . 1 . . 8 To Critical Strikes 4 | . . . . . . . . 1 . . . . . . . 3 Average Slot Usage (%) 80 | . 88 100 100 99 73 70 72 64 92 89 88 86 83 73 81 63 Engine 7 | . 14 14 14 13 9 9 9 5 5 6 6 6 6 5 5 1 Treads 20 | . 21 28 28 28 29 19 18 5 35 33 30 26 23 17 17 6 Leg 3 | . 6 . . . . . . 15 1 . . . . . . 6 Device 7 | . . . . . 3 14 18 11 4 13 6 11 13 14 17 9 Storage 8 | . 14 14 14 14 9 9 9 9 7 6 6 6 6 5 5 4 Processor 5 | . 3 14 14 14 3 . . . 4 6 7 6 6 5 5 5 Hackware 2 | . . . . . . . . 1 12 6 3 1 . . 4 4 Protection 2 | . . . . . 5 1 . . 3 . 6 6 5 5 . 2 Energy Gun 12 | . 28 28 28 28 6 . . 8 9 13 13 13 18 17 17 9 Ballistic Cannon 3 | . . . . . 1 18 18 6 1 . . . . . . . Naked Turns . | . . . . . . . . . . . . . . . . . Heaviest Build 95 | 14 49 49 49 54 84 84 64 64 80 66 87 86 90 89 89 95 Greatest Support 108 | 20 40 40 40 40 80 60 40 60 108 108 108 88 88 68 40 85 Greatest Overweight (x) 16 | . 1 1 1 1 1 1 1 16 1 . . . 1 2 2 5 Average Overweight (x) . | . . 1 1 1 . 1 1 2 . . . . . 1 1 1 Largest Inventory Capacity 20 | . 20 20 20 20 20 20 20 20 20 20 20 20 20 20 20 20 Average Capacity 19 | . 17 20 20 20 20 20 20 20 20 20 20 20 20 20 20 19 Most Carried 20 | . 13 16 17 20 20 20 20 20 20 20 20 20 20 18 20 19 Average Carried 17 | . 8 13 16 18 16 19 20 19 19 20 19 20 19 18 18 17 Final Capacity 20 | 8 20 20 20 20 20 20 20 20 20 20 20 20 20 20 20 5 Final Carried 20 | 6 13 16 17 20 20 20 20 20 20 20 20 20 18 18 18 4 Class Distribution -------------------- 49% | Mutant 16% | Bothacker-Skirmisher 13% | Bothacker-Mutant 10% | Bothacker-Gunner 9% | Scavenger-Mutant Dominant Class ---------------- Mutant | -10/Materials Mutant | -10/Mines Mutant | -10/Exiles Mutant | -9/Mines Mutant | -8/Materials Mutant | -8/Garrison Mutant | -8/Materials Mutant | -8/Garrison Bothacker-Mutant | -7/Factory Bothacker-Skirmisher | -6/Factory Bothacker-Skirmisher | -6/Garrison Bothacker-Mutant | -6/Factory Bothacker-Gunner | -6/DSF Bothacker-Gunner | -5/Factory Bothacker-Gunner | -5/Waste Bothacker-Skirmisher | -5/Factory Resources | -11 -10 -10 -10 -9 -8 -8 -8 -8 -7 -6 -6 -6 -6 -5 -5 -5 ----------- Run | Yrd Mat Min Exi Min Mat Gar Mat Gar Fac Fac Gar Fac DSF Fac Was Fac Matter Collected 2871 | 200 36 . . 20 249 431 . 477 461 . 193 . . 72 . 732 Remotely 154 | . . . . . . . . . . . . . . . . 154 Salvage Created 3841 | . 69 . . 69 647 107 . 491 431 . 293 . 98 36 . 1600 Parts 223 | . 6 . . 1 53 9 . 16 22 . 18 . 5 . . 93 Haulers Intercepted . | . . . . . . . . . . . . . . . . . Recyclers Shooed 2 | . . . . . 2 . . . . . . . . . . . Parts Field Recycled . | . . . . . . . . . . . . . . . . . Retrieved Matter . | . . . . . . . . . . . . . . . . . Parts Self-Destructed . | . . . . . . . . . . . . . . . . . Prevented . | . . . . . . . . . . . . . . . . . Kills | -11 -10 -10 -10 -9 -8 -8 -8 -8 -7 -6 -6 -6 -6 -5 -5 -5 ------- Run | Yrd Mat Min Exi Min Mat Gar Mat Gar Fac Fac Gar Fac DSF Fac Was Fac Combat Hostiles Destroyed 87 | . 2 . . 2 16 9 . 11 8 . 7 . 3 1 . 28 Melee 9 | . . . . . 5 . . 3 1 . . . . . . . Guns 43 | . 2 . . 2 2 . . 3 7 . 7 . 3 1 . 16 Cannons 12 | . . . . . . 9 . 3 . . . . . . . . AOE 21 | . . . . . 9 . . 1 . . . . . . . 11 Classes Destroyed 12 | . 1 . . 1 6 . . . 2 . 1 . . . . 1 Builder 7 | . . . . . 2 . . . 1 . . . . . . 4 Tunneler 1 | . . . . . . . . . 1 . . . . . . . Recycler 6 | . . . . . 2 . . . 1 . . . . . . 3 Operator 1 | . . . . . . . . . . . . . . . . 1 Swarmer 27 | . . . . . 7 5 . 3 . . 2 . 2 . . 8 Grunt 34 | . 2 . . 1 5 2 . 7 5 . . . 1 1 . 10 Brawler 2 | . . . . . . . . . . . 1 . . . . 1 Duelist 1 | . . . . 1 . . . . . . . . . . . . Sentry 7 | . . . . . 1 2 . . 3 . 1 . . . . . Hunter 11 | . . . . . 2 . . 1 . . 2 . . . . 6 Programmer 5 | . . . . . . . . . 1 . 1 . . . . 3 Heavy 1 | . . . . . 1 . . . . . . . . . . . Best Kill Streak 7 | . 2 . . 2 7 3 . 3 3 . 3 . 2 1 . 6 Combat Bots Only 5 | . 2 . . 2 5 3 . 3 3 . 3 . 2 1 . 5 Max Kills in Single Turn 5 | . 1 . . 1 5 1 . 1 2 . 1 . 1 1 . 3 Gunslinging 1 | . . . . . . . . . . . . . . . . 1 Exploded 3 | . . . . . 3 . . 1 . . . . . . . 2 Melee 1 | . . . . . 1 . . 1 1 . . . . . . . Uniques/NPCs Destroyed . | . . . . . . . . . . . . . . . . . Combat | -11 -10 -10 -10 -9 -8 -8 -8 -8 -7 -6 -6 -6 -6 -5 -5 -5 -------- Run | Yrd Mat Min Exi Min Mat Gar Mat Gar Fac Fac Gar Fac DSF Fac Was Fac Hostile Shots Fired 761 | . 13 . . 7 67 97 . 154 99 . 51 . 15 3 . 255 Missed 237 | . 7 . . 2 21 25 . 57 35 . 13 . 3 1 . 73 Damage Taken 8541 | . 69 . . 123 1118 955 . 1275 724 . 525 . 295 37 . 3420 Core 1687 | . 24 . . 53 149 74 . 275 70 . 23 . . . . 1019 Absorbed by Shields 579 | . . . . . . . . . . . . . . . . 579 Redirected to Shielding 108 | . . . . . . . . . . . . . . . . 108 Core Remaining (%) 73 | 100 . . . 69 . . . 9 90 . . . 97 . . . Volleys Fired 270 | . 8 . . 9 20 42 . 41 30 . 27 . 11 3 8 71 Largest 4 | . 2 . . 2 2 2 . 2 2 . 3 . 3 3 2 4 Hottest 290 | . 100 . . 100 122 96 . 113 155 . 185 . 235 210 130 290 Shots Fired 484 | . 16 . . 18 31 84 . 64 51 . 50 . 29 9 12 120 Gun 316 | . 16 . . 18 25 . . 33 42 . 41 . 27 9 5 100 Cannon 116 | . . . . . . 84 . 31 1 . . . . . . . Launcher 13 | . . . . . 6 . . . . . . . . . . 7 Special 39 | . . . . . . . . . 8 . 9 . 2 . 7 13 Kinetic 206 | . . . . . . 84 . 31 12 . 13 . . . . 66 Thermal 200 | . 16 . . 18 25 . . 25 31 . 28 . 25 6 3 23 Explosive 13 | . . . . . 6 . . . . . . . . . . 7 Electromagnetic 26 | . . . . . . . . 8 . . . . 2 3 2 11 Robot Hit Streak 16 | . 4 . . 4 7 8 . 7 12 . 16 . 7 5 10 13 Robot Miss Streak 7 | . 3 . . 2 3 5 . 3 7 . 4 . 6 3 1 6 Penetration Max 1 | . . . . . . 1 . . . . . . . . . 1 Secondary Targets 5 | . . . . 1 . . . . 1 . 1 . . . . 2 Max Gunslinging Chain 1 | . . . . 1 . . . . 1 . 1 . . . . 1 Shots Hit Robots 330 | . 6 . . 12 38 32 . 43 50 . 29 . 20 8 10 82 Core Hits 253 | . 4 . . 7 30 12 . 21 35 . 19 . 15 6 5 99 Critical Kills 1 | . . . . . . . . . . . . . . . . 1 Critical Parts Destroyed 1 | . . . . . . . . . . . . . . . . 1 Critical Strikes 13 | . 1 . . . 1 3 . 6 . . . . . . . 2 Burn 2 | . 1 . . . 1 . . . . . . . . . . . Destroy 2 | . . . . . . . . . . . . . . . . 2 Blast 8 | . . . . . . 3 . 5 . . . . . . . . Sever 1 | . . . . . . . . 1 . . . . . . . . Melee Attacks 34 | . . . . . 19 . . 9 2 . 4 . . . . . Impact . | . . . . . . . . . . . . . . . . . Slashing 32 | . . . . . 19 . . 9 . . 4 . . . . . Piercing . | . . . . . . . . . . . . . . . . . Sneak Attacks 1 | . . . . . 1 . . . . . . . . . . . Combat Hostiles . | . . . . . . . . . . . . . . . . . Follow-up Attacks . | . . . . . . . . . . . . . . . . . Damage Inflicted 9313 | . 77 16 . 173 1582 1079 . 1350 928 . 466 . 487 144 90 2921 Guns 4424 | . 75 . . 163 254 . . 311 834 . 466 . 487 144 90 1600 Cannons 1597 | . . . . . . 1079 . 493 25 . . . . . . . Explosions 2124 | . . . . . 673 . . 142 . . . . . . . 1309 Melee 1043 | . . . . . 639 . . 404 . . . . . . . . Ramming 125 | . 2 16 . 10 16 . . . 69 . . . . . . 12 Kinetic 2870 | . . . . . . 1079 . 493 203 . 119 . . . . 976 Thermal 3052 | . 75 . . 163 254 . . 361 656 . 347 . 472 116 88 520 Explosive 1597 | . . . . . 673 . . . . . . . . . . 924 Electromagnetic 626 | . . . . . . . . 92 . . . . 15 28 2 489 Impact . | . . . . . . . . . . . . . . . . . Slashing 1043 | . . . . . 639 . . 404 . . . . . . . . Piercing . | . . . . . . . . . . . . . . . . . Highest Corruption 58 | . . . . . . . . 1 6 . . . . . 24 58 Average Corruption 11 | . . . . . . . . 1 3 . . . . . 14 28 Corruption Purged . | . . . . . . . . . . . . . . . . . Corruption Blocked . | . . . . . . . . . . . . . . . . . Effects 106 | . . . . . . . . 9 21 . . . . . 13 63 Message Errors 19 | . . . . . . . . 2 3 . . . . . 1 13 Matter Fused 26 | . . . . . . . . 3 5 . . . . . 4 14 Heat Flow Errors 10 | . . . . . . . . . 2 . . . . . 1 7 Energy Discharges 14 | . . . . . . . . . 2 . . . . . 3 9 Parts Rejected 2 | . . . . . . . . 1 . . . . . . . 1 Parts Fused 1 | . . . . . . . . . . . . . . . . 1 Data Loss (minor) 11 | . . . . . . . . . 6 . . . . . . 5 Data Loss (major) 8 | . . . . . . . . . 2 . . . . . 1 5 Misfires 5 | . . . . . . . . 1 1 . . . . . 3 . Alerts 2 | . . . . . . . . 1 . . . . . . . 1 Misdirections 3 | . . . . . . . . . . . . . . . . 3 Weapon Failures 5 | . . . . . . . . 1 . . . . . . . 4 Overload Shots . | . . . . . . . . . . . . . . . . . Overflow Damage 220 | . . . . . 133 33 . 30 2 . . . . . . 22 Projectiles 40 | . . . . . . 33 . 7 . . . . . . . . Explosions 98 | . . . . . 53 . . 23 . . . . . . . 22 Melee 82 | . . . . . 80 . . . 2 . . . . . . . Knockbacks 21 | . . . . 1 . 14 . 5 1 . . . . . . . Impact 2 | . . . . 1 . . . . 1 . . . . . . . Kinetic 17 | . . . . . . 12 . 5 . . . . . . . . Secondary 2 | . . . . . . 2 . . . . . . . . . . Self-Inflicted Damage 383 | . . . . . 31 . . 76 . . . . . . . 276 Shots 17 | . . . . . 1 . . 2 . . . . . . . 14 Rammed 18 | . 1 6 . 3 2 . . . 4 . . . . 1 . 1 Targets Rammed 25 | . 1 6 . 3 2 . . . 7 . . . . 1 . 5 Kicked 4 | . . . . . . . . . . . . . . . . 4 Crushed 3 | . . . . . . . . . 3 . . . . . . . Highest Temperature 441 | . 199 . . 246 441 399 . 54 369 . 314 . 171 336 216 184 Average Temperature 103 | . 80 . . 114 129 171 . 31 105 . 97 . 79 179 112 51 Received Heat Transfer 1875 | . 36 . . 12 126 387 . 432 273 . 30 . 48 36 . 495 Effects 7 | . . . . . 3 2 . . 2 . . . . . . . Shutdowns 2 | . . . . . 1 1 . . . . . . . . . . Energy Bleed 1 | . . . . . 1 . . . . . . . . . . . Interference 2 | . . . . . . . . . 2 . . . . . . . Matter Decay 1 | . . . . . 1 . . . . . . . . . . . Damage (minor) 1 | . . . . . . 1 . . . . . . . . . . Siege Activations . | . . . . . . . . . . . . . . . . . Robots Corrupted 1 | . . . . . . . . . . . . . . . . 1 Combat Hostiles 1 | . . . . . . . . . . . . . . . . 1 Parts Fried 3 | . . . . . . . . . . . . . . . . 3 Impact Corruptions 2 | . . . . . . 1 . . 1 . . . . . . . Robots Melted 1 | . . . . . . . . 1 . . . . . . . . Combat Hostiles 1 | . . . . . . . . 1 . . . . . . . . Parts Melted 5 | . . . . 1 . . . 1 . . 1 . . . . 2 Heat Transferred 5817 | . 296 . . 469 666 . . 818 1175 . 552 . 701 130 60 950 Parts Sabotaged . | . . . . . . . . . . . . . . . . . Parts Stolen . | . . . . . . . . . . . . . . . . . Parts Stripped . | . . . . . . . . . . . . . . . . . Power Chain Reactions 2 | . . . . . . . . 2 . . . . . . . . Missiles Intercepted . | . . . . . . . . . . . . . . . . . Alert | -11 -10 -10 -10 -9 -8 -8 -8 -8 -7 -6 -6 -6 -6 -5 -5 -5 ------- Run | Yrd Mat Min Exi Min Mat Gar Mat Gar Fac Fac Gar Fac DSF Fac Was Fac Peak Influence 803 | . 80 31 . 58 286 803 391 772 629 165 429 224 483 277 117 612 Initial 405 | . . 31 . . 22 185 391 254 405 165 115 224 156 253 96 81 Average 284 | . 36 17 . 40 98 520 391 458 404 165 251 224 307 266 107 224 Maximum Alert Level 3 | . . . . . 1 3 1 3 2 . 2 1 2 1 . 2 Low Security (%) 39 | . 100 100 . 100 85 3 . . . 100 47 . 18 . 100 52 Level 1 31 | . . . . . 14 32 100 36 58 . 39 100 60 100 . 29 Level 2 24 | . . . . . . 44 . 54 41 . 13 . 21 . . 18 Level 3 4 | . . . . . . 19 . 8 . . . . . . . . Level 4 . | . . . . . . . . . . . . . . . . . Level 5 . | . . . . . . . . . . . . . . . . . High Security . | . . . . . . . . . . . . . . . . . Max Security . | . . . . . . . . . . . . . . . . . Sterilizations 1 | . . . . . . . . . . . . . 1 . . . Squads Dispatched 27 | . 1 . . . 3 . . . 13 . . . 1 . . 9 Investigation 9 | . 1 . . . 1 . . . 5 . . . . . . 2 Extermination 4 | . . . . . . . . . 2 . . . . . . 2 Reinforcement 8 | . . . . . 2 . . . . . . . 1 . . 5 Assault . | . . . . . . . . . . . . . . . . . Garrison 6 | . . . . . . . . . 6 . . . . . . . Intercept . | . . . . . . . . . . . . . . . . . Searches Triggered . | . . . . . . . . . . . . . . . . . Construction Impeded 2 | . . . . . . . . . . . . . . . . 2 Haulers Reinforced 2 | . . . . . . . . . . . . . . . . 2 Active Scanning Responses . | . . . . . . . . . . . . . . . . . Cargo Convoy Interrupts . | . . . . . . . . . . . . . . . . . Stealth | -11 -10 -10 -10 -9 -8 -8 -8 -8 -7 -6 -6 -6 -6 -5 -5 -5 --------- Run | Yrd Mat Min Exi Min Mat Gar Mat Gar Fac Fac Gar Fac DSF Fac Was Fac Distress Signals 6 | . . . . . 3 . . . . . . . . . . 3 Communications Jammed . | . . . . . . . . . . . . . . . . . Distress Signals . | . . . . . . . . . . . . . . . . . Times Spotted 168 | . 5 . . 6 23 19 . 18 20 . 9 . 12 2 3 51 Peak Tracking Total 8 | . 3 . . 5 7 8 . 5 3 . 3 . 4 2 1 8 Tactical Retreats 10 | . . . . . 1 . . 4 . . . . 2 . . 3 Traps | -11 -10 -10 -10 -9 -8 -8 -8 -8 -7 -6 -6 -6 -6 -5 -5 -5 ------- Run | Yrd Mat Min Exi Min Mat Gar Mat Gar Fac Fac Gar Fac DSF Fac Was Fac Traps Triggered 8 | . . . . . . 4 . 1 1 . . . . 1 . 1 Indirectly . | . . . . . . . . . . . . . . . . . Trap Hack Attempts . | . . . . . . . . . . . . . . . . . Triggered . | . . . . . . . . . . . . . . . . . Disarmed . | . . . . . . . . . . . . . . . . . Reprogrammed . | . . . . . . . . . . . . . . . . . Reused 8 | . . . . 1 2 . . 4 . . . . . . . 1 Traps Extracted 1 | . . . . . . . . 1 . . . . . . . . Installed 14 | . . . . 1 2 . . 7 1 . . . . . . 3 Triggered 9 | . . . . 1 2 . . 4 . . . . 1 . . 1 Most Traps Carried 8 | . . 3 3 3 2 . . 8 3 2 3 3 3 3 3 3 Machines | -11 -10 -10 -10 -9 -8 -8 -8 -8 -7 -6 -6 -6 -6 -5 -5 -5 ---------- Run | Yrd Mat Min Exi Min Mat Gar Mat Gar Fac Fac Gar Fac DSF Fac Was Fac Machines Disabled 19 | . . . . . . 6 . 3 . . 6 . . . . 4 Max in Single Turn 2 | . . . . . . 2 . 1 . . 1 . . . . 2 Garrison Relay 5 | . . . . . . 2 . 1 . . 2 . . . . . Phase Generator 1 | . . . . . . 1 . . . . . . . . . . Machines Repaired . | . . . . . . . . . . . . . . . . . Machines Dismantled 1 | . . . . . 1 . . . . . . . . . . . Machines Sabotaged 1 | . . . . . . . . . . . . . . . . 1 Overloaded Fab Kills . | . . . . . . . . . . . . . . . . . Hacking | -11 -10 -10 -10 -9 -8 -8 -8 -8 -7 -6 -6 -6 -6 -5 -5 -5 --------- Run | Yrd Mat Min Exi Min Mat Gar Mat Gar Fac Fac Gar Fac DSF Fac Was Fac Machines Accessed 25 | . 1 . 1 . 3 4 1 2 7 1 . 1 . 1 . 3 Terminals 15 | . 1 . . . 2 4 . 2 3 . . 1 . . . 2 Fabricators 3 | . . . . . . . . . 2 . . . . 1 . . Repair Stations 2 | . . . . . . . . . 1 . . . . . . 1 Recycling Units . | . . . . . . . . . . . . . . . . . Scanalyzers . | . . . . . . . . . . . . . . . . . Garrison Access 4 | . . . . . 1 . 1 . 1 1 . . . . . . Total Hacks 53 | . 2 . 1 . 7 8 2 4 21 2 . 1 . 1 . 4 Successful 23 | . . . 1 . 4 3 2 1 7 2 . 1 . . . 2 Failed 30 | . 2 . . . 3 5 . 3 14 . . . . 1 . 2 Catastrophic 5 | . . . . . . 1 . . 1 . . . . 1 . 2 Database Lockouts . | . . . . . . . . . . . . . . . . . Manual 13 | . . . 1 . 4 . . . 7 . . . . . . 1 Terminals 35 | . 2 . . . 6 8 . 4 11 . . 1 . . . 3 Fabricators 8 | . . . . . . . . . 7 . . . . 1 . . Repair Stations 3 | . . . . . . . . . 2 . . . . . . 1 Recycling Units . | . . . . . . . . . . . . . . . . . Scanalyzers . | . . . . . . . . . . . . . . . . . Garrison Access 6 | . . . . . 1 . 2 . 1 2 . . . . . . Terminal Hacks 14 | . . . 1 . 3 3 . 1 4 . . 1 . . . 1 Record 1 | . . . . . . . . . . . . . . . . 1 Robot Analysis 1 | . . . . . . . . . 1 . . . . . . . Prototype ID Bank 2 | . . . . . 2 . . . . . . . . . . . Open DSF 1 | . . . . . . . . . . . . 1 . . . . Branch Access Points 1 | . . . . . . . . . 1 . . . . . . . Emergency Access Points 2 | . . . . . . 1 . 1 . . . . . . . . Alert Level 2 | . . . . . 1 . . . 1 . . . . . . . Unreport Threat 1 | . . . . . . . . . 1 . . . . . . . Garrison Registry 1 | . . . . . . 1 . . . . . . . . . . Patrol Navigation 1 | . . . . . . 1 . . . . . . . . . . Derelict Proto ID Bank 1 | . . . 1 . . . . . . . . . . . . . Fabricator Hacks 1 | . . . . . . . . . 1 . . . . . . . Network Status 1 | . . . . . . . . . 1 . . . . . . . Repair Station Hacks 1 | . . . . . . . . . 1 . . . . . . . Scan Component 1 | . . . . . . . . . 1 . . . . . . . Recycling Unit Hacks . | . . . . . . . . . . . . . . . . . Scanalyzer . | . . . . . . . . . . . . . . . . . Garrison Access Hacks 5 | . . . . . 1 . 2 . . 2 . . . . . . Unlock Access 3 | . . . . . 1 . 1 . . 1 . . . . . . Coupler Status 2 | . . . . . . . 1 . . 1 . . . . . . Unauthorized Hacks 2 | . . . . . . . . . 1 . . . . . . 1 Terminals 1 | . . . . . . . . . . . . . . . . 1 Sabotage 1 | . . . . . . . . . . . . . . . . 1 Fabricators . | . . . . . . . . . . . . . . . . . Repair Stations . | . . . . . . . . . . . . . . . . . Recycling Units . | . . . . . . . . . . . . . . . . . Scanalyzers . | . . . . . . . . . . . . . . . . . Garrison Access 1 | . . . . . . . . . 1 . . . . . . . Eject 1 | . . . . . . . . . 1 . . . . . . . Data Cores Recovered . | . . . . . . . . . . . . . . . . . Used . | . . . . . . . . . . . . . . . . . Hacking Detections 21 | . 1 . . . 2 4 1 2 7 1 . . . 1 . 2 Full Trace Events 9 | . 1 . . . 1 1 . 1 4 . . . . . . 1 Feedback Events . | . . . . . . . . . . . . . . . . . Feedback Blocked . | . . . . . . . . . . . . . . . . . Robot Schematics Acquired . | . . . . . . . . . . . . . . . . . Robots Built . | . . . . . . . . . . . . . . . . . Authchips . | . . . . . . . . . . . . . . . . . Time . | . . . . . . . . . . . . . . . . . Total Robot Build Rating . | . . . . . . . . . . . . . . . . . Part Schematics Acquired . | . . . . . . . . . . . . . . . . . Parts Built . | . . . . . . . . . . . . . . . . . Authchips . | . . . . . . . . . . . . . . . . . Time . | . . . . . . . . . . . . . . . . . Total Part Build Rating . | . . . . . . . . . . . . . . . . . Parts Repaired . | . . . . . . . . . . . . . . . . . Time . | . . . . . . . . . . . . . . . . . Parts Recycled . | . . . . . . . . . . . . . . . . . Recycled Matter . | . . . . . . . . . . . . . . . . . Retrieved Matter . | . . . . . . . . . . . . . . . . . Retrieved Components . | . . . . . . . . . . . . . . . . . Parts Scanalyzed . | . . . . . . . . . . . . . . . . . Part Schematics Acquired . | . . . . . . . . . . . . . . . . . Parts Damaged . | . . . . . . . . . . . . . . . . . Bothacking | -11 -10 -10 -10 -9 -8 -8 -8 -8 -7 -6 -6 -6 -6 -5 -5 -5 ------------ Run | Yrd Mat Min Exi Min Mat Gar Mat Gar Fac Fac Gar Fac DSF Fac Was Fac Used RIF Installer 2 | . . . . . . 1 . . . . 1 . . . . . Hotswap 1 | . . . . . . . . . . . 1 . . . . . Robots Hacked 30 | . . . . . . . . . 7 . 5 . 1 . 5 12 Non-combat 7 | . . . . . . . . . 2 . . . . . . 5 Combat 23 | . . . . . . . . . 5 . 5 . 1 . 5 7 Robot Hacks Applied 35 | . . . . . . . . . 9 . 5 . 1 . 7 13 parse_system 2 | . . . . . . . . . . . . . . . 1 1 generate_anomaly 1 | . . . . . . . . . . . . . . . . 1 generate_echo 1 | . . . . . . . . . 1 . . . . . . . drop_inventory 1 | . . . . . . . . . . . . . . . . 1 ignore_parts 2 | . . . . . . . . . . . . . . . . 2 ignore_targets 6 | . . . . . . . . . . . . . . . 6 . find_shortcuts 1 | . . . . . . . . . 1 . . . . . . . focus_fire 2 | . . . . . . . . . 2 . . . . . . . overload_power 4 | . . . . . . . . . 1 . 1 . . . . 2 amplify_resonance 5 | . . . . . . . . . . . . . . . . 5 reboot_system 1 | . . . . . . . . . . . 1 . . . . . overwrite_iff 3 | . . . . . . . . . 1 . 1 . . . . 1 formatsys_high 6 | . . . . . . . . . 3 . 2 . 1 . . . Relay Couplers Released 21 | . . . . . . 8 . 3 3 . 7 . . . . . Ejected 3 | . . . . . . . . . 3 . . . . . . . Machine Destruction 18 | . . . . . . 8 . 3 . . 7 . . . . . Attached 10 | . . . . . . . . . 4 . 3 . 1 . 1 1 Fabnet Peak Effective % . | . . . . . . . . . . . . . . . . . Robots Rewired 3 | . . . . . . 2 . . . . . . . 1 . . Allies Hacked . | . . . . . . . . . . . . . . . . . Hacks Repelled . | . . . . . . . . . . . . . . . . . Allies | -11 -10 -10 -10 -9 -8 -8 -8 -8 -7 -6 -6 -6 -6 -5 -5 -5 -------- Run | Yrd Mat Min Exi Min Mat Gar Mat Gar Fac Fac Gar Fac DSF Fac Was Fac Total Allies 17 | . . 5 . . . 2 . . 4 . 3 . 1 1 . 1 Largest Group 5 | . . 5 5 3 . 2 . . 2 . 2 1 2 2 2 2 Highest-Rated Group 155 | . . 82 82 40 . 62 . . 64 . 61 46 136 155 155 94 Highest-Rated Ally 90 | . . 31 31 16 . 31 . . 32 . 46 46 90 90 90 65 Total Orders . | . . . . . . . . . . . . . . . . . Ally Attacks 146 | . . . . 21 . 28 . . 23 . 6 . 32 4 27 5 Total Damage 3891 | . . . . 193 . 401 . . 692 . 203 . 1020 145 1143 94 Kills 26 | . . . . 3 . 8 . . 5 . . . 8 1 1 . Allies Corrupted . | . . . . . . . . . . . . . . . . . Allies Melted . | . . . . . . . . . . . . . . . . . Intel | -11 -10 -10 -10 -9 -8 -8 -8 -8 -7 -6 -6 -6 -6 -5 -5 -5 ------- Run | Yrd Mat Min Exi Min Mat Gar Mat Gar Fac Fac Gar Fac DSF Fac Was Fac Robot Analysis Total 1 | . . . . . . . . . 1 . . . . . . . Derelict Logs Recovered 3 | . . 3 . . . . . . . . . . . . . . Drone Launches . | . . . . . . . . . . . . . . . . . Drone Recoveries . | . . . . . . . . . . . . . . . . . Exploration | -11 -10 -10 -10 -9 -8 -8 -8 -8 -7 -6 -6 -6 -6 -5 -5 -5 ------------- Run | Yrd Mat Min Exi Min Mat Gar Mat Gar Fac Fac Gar Fac DSF Fac Was Fac Turns Passed 8635 | . 277 722 534 398 666 1149 20 1315 1011 39 562 92 309 166 262 1113 Spaces Moved 3349 | 1 122 294 223 149 256 393 8 424 489 23 278 57 135 53 96 348 Core 44 | . . . . . . . . 10 . . . . . . . 34 Treads 2795 | . 76 294 223 149 256 393 8 129 489 23 278 57 135 53 96 136 Legs 510 | 1 46 . . . . . . 285 . . . . . . . 178 Wheels . | . . . . . . . . . . . . . . . . . Hover . | . . . . . . . . . . . . . . . . . Flight . | . . . . . . . . . . . . . . . . . Fastest Speed 50 | 120 120 240 240 240 160 245 245 160 160 160 160 160 160 240 240 50 Average Speed 218 | 120 194 240 240 240 191 245 245 270 168 160 160 160 186 265 248 237 Slowest Speed 850 | 120 240 240 240 240 246 246 245 850 240 160 160 160 240 320 320 470 Overloaded Moves . | . . . . . . . . . . . . . . . . . Propulsion Burnouts . | . . . . . . . . . . . . . . . . . Robots Hopped . | . . . . . . . . . . . . . . . . . Cave-ins Triggered . | . . . . . . . . . . . . . . . . . Exploration Rate (%) 31 | 1 20 57 60 33 31 50 2 43 14 1 41 2 88 3 78 12 Regions Visited 16 Branch Regions 3 Pre-discovered Areas . | . . . . . . . . . . . . . . . . . Known Exits Taken 4 | . . . . . 1 . 1 . . 1 . 1 . . . . Unknown Exits Taken 6 | 1 1 1 1 1 . . . . 1 . . . . . . . Scrap Searched 3 | . . 1 . 2 . . . . . . . . . . . . Spaces Dug . | . . . . . . . . . . . . . . . . . Terrain Destroyed 229 | . . . . . 25 72 . 8 . . . . . . . 124 Melee . | . . . . . . . . . . . . . . . . . Projectile 6 | . . . . . . . . . . . . . . . . 6 AOE 223 | . . . . . 25 72 . 8 . . . . . . . 118 Terrain Rammed . | . . . . . . . . . . . . . . . . . Walls Destroyed . | . . . . . . . . . . . . . . . . . Machines Disabled . | . . . . . . . . . . . . . . . . . Actions | -11 -10 -10 -10 -9 -8 -8 -8 -8 -7 -6 -6 -6 -6 -5 -5 -5 --------- Run | Yrd Mat Min Exi Min Mat Gar Mat Gar Fac Fac Gar Fac DSF Fac Was Fac Total 4161 | . 144 303 223 170 367 503 8 517 617 24 358 58 176 72 118 503 Wait 103 | . . 1 . . 7 10 . . 28 . 11 . . . 10 36 Move 3333 | . 121 293 222 148 255 391 8 422 488 23 276 56 134 53 95 348 Hop . | . . . . . . . . . . . . . . . . . Pick Up 78 | . 8 3 1 5 12 11 . 7 12 . 10 . 7 . . 2 Fast Attach 66 | . 1 . . . 11 1 . 18 10 1 4 1 . 2 . 17 Attach 34 | . 1 . . 1 4 2 . 1 8 . 4 . 5 . 3 5 Detach 27 | . 1 . . . 5 . . 1 6 . 4 1 . 1 2 6 Swap 40 | . 2 . . 1 6 1 . 1 13 . 6 . 6 . . 4 Drop 79 | . 1 . . 2 16 12 . 10 11 . 11 . 11 1 . 4 Fire 270 | . 8 . . 9 20 42 . 41 30 . 27 . 11 3 8 71 Melee 34 | . . . . . 19 . . 9 2 . 4 . . . . . Ram . | . . . . . . . . . . . . . . . . . Kick 4 | . . . . . . . . . . . . . . . . 4 Crush 21 | . 1 6 . 3 2 . . . 7 . . . . 1 . 1 Escape Stasis 10 | . . . . . . 8 . . . . . . 2 . . . Rewire 40 | . . . . . . 25 . . 1 . 1 . . 11 . 2 Trap 14 | . . . . 1 2 . . 7 1 . . . . . . 3 Miscellaneous 8 | . . . . . 8 . . . . . . . . . . . Route ------- -11/Scrapyard -10/Materials -10/Mines -10/Exiles -9/Mines -8/Materials (discovered 3 exits: Fac x2 / Gar) -8/Garrison (discovered 3 exits: *Mat x3) -8/Materials -8/Garrison -7/Factory (discovered 3 exits: *Fac / Low x2) -6/Factory -6/Garrison -6/Factory -6/DSF -5/Factory -5/Waste -5/Factory History --------- Turn | Location | Event 1 | -11/Scrapyard | Discovered new exit (range 0) 1 | -11/Scrapyard | Entered Materials 51 | -10/Materials | Discovered new exit (range 12) 278 | -10/Materials | Entered Mines 286 | -10/Mines | Assisted by bots powering up and referring to "LRC-V3" 304 | -10/Mines | Build established: Mutant 305 | -10/Mines | Learned 4 Materials zone layouts 310 | -10/Mines | Learned Materials emergency access door positions 338 | -10/Mines | Learned 2 Materials zone layouts 908 | -10/Mines | Found a hidden stash of uninstalled traps 988 | -10/Mines | Deemed a non-threat by the Exiles lab entrance 988 | -10/Mines | Discovered new exit (range 5) 1000 | -10/Mines | Entered Exiles 1000 | -10/Exiles | Accompanied by 5 allies 1030 | -10/Exiles | Led the pair of lost Derelicts to a safe place 1060 | -10/Exiles | Met 8R-AWN 1099 | -10/Exiles | Met EX-HEX 1173 | -10/Exiles | Met EX-BIN 1202 | -10/Exiles | Aligned with FarCom system 1204 | -10/Exiles | Given EX-Vault access code 1264 | -10/Exiles | Opened EX-Vault 1279 | -10/Exiles | Found Longsword +1 1330 | -10/Exiles | Warned to stay clear of 0b10 Research branches 1414 | -10/Exiles | Met EX-DEC 1503 | -10/Exiles | Discovered new exit (range 10) 1534 | -10/Exiles | Left Exiles lab with Longsword +1 1534 | -10/Exiles | Entered Mines 1534 | -9/Mines | Accompanied by 3 allies 1691 | -9/Mines | Lost 3 allies 1920 | -9/Mines | Discovered new exit (range 5) 1932 | -9/Mines | Entered Materials 1932 | -8/Materials | Evolved 4 slots: Propulsion x3, Utility x1 1933 | -8/Materials | Identified exit to Factory 2117 | -8/Materials | Lost 4 parts (2n2w) 2586 | -8/Materials | Identified exit to Garrison 2598 | -8/Materials | Entered Garrison 2640 | -8/Garrison | Discovered new exit (range 63) 2640 | -8/Garrison | Discovered new exit (range 65) 2640 | -8/Garrison | Discovered new exit (range 52) 2687 | -8/Garrison | Garrison Relay disabled 3013 | -8/Garrison | Triggered checkpoint 3349 | -8/Garrison | Installed Relay Interface Framework 3459 | -8/Garrison | Phase Generator disabled 3514 | -8/Garrison | Triggered checkpoint 3591 | -8/Garrison | Garrison Relay disabled 3747 | -8/Garrison | Entered Materials 3767 | -8/Materials | Identified exit to Garrison 3767 | -8/Materials | Entered Garrison 3786 | -8/Garrison | Triggered checkpoint 3947 | -8/Garrison | Core integrity fell below 50% 4116 | -8/Garrison | Build established: Scavenger-Mutant 4407 | -8/Garrison | Lost 3 parts (2n1w) 4604 | -8/Garrison | Core integrity fell below 20% 4618 | -8/Garrison | Lost 6 parts (1p2n1u2w) 4651 | -8/Garrison | Build established: Mutant 5041 | -8/Garrison | Garrison Relay disabled 5070 | -8/Garrison | Discovered exit to Factory (range 8) 5082 | -8/Garrison | Entered Factory 5082 | -7/Factory | Evolved 2 slots: Utility x2 5111 | -7/Factory | Build established: Bothacker-Mutant 5324 | -7/Factory | Garrison activated, responded to threat 5755 | -7/Factory | Identified exit to Lower Caves 5770 | -7/Factory | Found Rocket Array 6061 | -7/Factory | Discovered new exit (range 16) 6093 | -7/Factory | Entered another Factory area 6093 | -6/Factory | Evolved 2 slots: Utility x1, Weapon x1 6132 | -6/Factory | Identified exit to Garrison 6132 | -6/Factory | Entered Garrison 6147 | -6/Garrison | Expanded RIF knowledge: Hotswap 6244 | -6/Garrison | Triggered checkpoint 6308 | -6/Garrison | Garrison Relay disabled 6342 | -6/Garrison | Build established: Bothacker-Skirmisher 6372 | -6/Garrison | Triggered checkpoint 6525 | -6/Garrison | Garrison Relay disabled 6562 | -6/Garrison | Triggered checkpoint 6671 | -6/Garrison | Discovered new exit (range 10) 6694 | -6/Garrison | Entered Factory 6694 | -6/Factory | Accompanied by 1 ally 6786 | -6/Factory | Identified exit to DSF 6786 | -6/Factory | Entered DSF 6786 | -6/DSF | Accompanied by 1 ally 6826 | -6/DSF | Additional patrols routed to DSF 6923 | -6/DSF | Discovered new exit (range 16) 7045 | -6/DSF | Sterilization system engaged 7065 | -6/DSF | Ambient heat levels rising (+10) 7080 | -6/DSF | Ambient heat levels rising (+10) 7095 | -6/DSF | Ambient heat levels rising (+10) 7095 | -6/DSF | Entered Factory 7095 | -5/Factory | Accompanied by 2 allies 7095 | -5/Factory | Evolved 2 slots: Utility x1, Weapon x1 7104 | -5/Factory | Build established: Bothacker-Gunner 7261 | -5/Factory | Sucked down chute 7261 | -5/Factory | Entered Waste 7266 | -5/Waste | Spotted C-40 Crusher 7276 | -5/Waste | EMP discharged 7293 | -5/Waste | Spotted C-40 Crusher 7325 | -5/Waste | 2 allies followed down the chute 7357 | -5/Waste | Spotted C-40 Crusher 7376 | -5/Waste | EMP discharged 7376 | -5/Waste | System corruption reached 10% 7393 | -5/Waste | Spotted C-40 Crusher 7430 | -5/Waste | Spotted C-40 Crusher 7476 | -5/Waste | EMP discharged 7490 | -5/Waste | Discovered new exit (range 11) 7523 | -5/Waste | Entered Factory 7523 | -5/Factory | Accompanied by 1 ally 8022 | -5/Factory | Build established: Bothacker-Skirmisher 8168 | -5/Factory | Lost 5 parts (2n1u2w) 8446 | -5/Factory | System corruption reached 30% 8470 | -5/Factory | Lost 7 parts (2n2u3w) 8520 | -5/Factory | Lost 3 parts (1p2n) 8554 | -5/Factory | Core integrity fell below 50% 8618 | -5/Factory | Core integrity fell below 20% 8636 | -5/Factory | Destroyed by P-70 Sage with Tesla Rifle Last Messages --------------- 08614_ Flexi-carbon Leg destroyed. 08614_ Power Conduit explodes. 08614_ Dropped Hcp. Storage Unit. 08617_ Penetrated by Slug. 08621_ System corrupted: Energy discharge (-29). 08621_ Critical hit (Burn: +37). 08621_ Slug penetrates Wall. 08628_ Connecting with Terminal... >>Force(Sabotage) SYSTEM_VULNERABLE[Nuclear Reactor] NETWORK_OVERLOAD COORDINATES_RETRIEVED 08628_ ALERT: Suspicious activity at Terminal F010. Dispatching Investigation squad. 08636_ KM|RGG4NI2YDOM%7:3:| 08636_ P-70 Sage destroyed. 08636_ Core Analyzer destroyed. 08636_ Destroyed Core Analyzer. 08636_ Rocket Array destroyed. 08636_ Destroyed Rocket Array. Map ----- +----------------------------------------------------+ | ???????????????????# !/!=! | | ???????????????????# !!! | | ???????????????????# [ " | | ????????????????#??# " | | ????????????????# ## " | | ???????????? ??## #" " " | | ??????????###+## " " " | | ?????????? " " " | | ??????????????## " " " | | ???????????????## " " | | ????????????????# h " " " | | ????????????????# ? ? ? | | ????????????????# ? ? ? | | ????????????????# ? ? ? | | ????????????????# ?#? ? ? | | ????????????????# #####?#??? ??? | | ???????????????########Y#############????????????? | | ???????????????# ! #????????????????? | | ???????????????# ! """ """ #????????????????? | | ???????????????# """"" """"" ?????????????????? | | ???????????????# """"" """"" #????????????????? | | ???????????????# #????????????????? | | ???????????????# "" """p """ ?????????????????? | | ???????????????# "T """"" """"" #????????????????? | | ???????????????# "" """"" """"" #????????????????? | | ???????????????# @ #????????????????? | | ???????????????######### # ######????????????????? | | | | | | | | | | | | | | | | | | | | | | | | | | | | | | | | | | | | | | | | | | | | | | | +----------------------------------------------------+ Best States ------------- Heat Dissipation 81 Energy Generation 19 Energy Capacity 310 Matter Stores 300 Matter Capacity 300 Sight Range 16 Terrain Scan Range 16 Terrain Scan Density 210 Armor Coverage 750 Core Shielding 20 Utility Shielding 66 Weapon Cycling 15 Evasion (%) 55 Targeting Accuracy 5 Melee Accuracy 6 Core Analysis 6 Recoil Reduction 5 Particle Charging 20 Relay Coupler Types 3 Relay Coupler Value 50 Authchip Count 2 Trap Extractor Capacity 4 Item Schematics ----------------- None Robot Schematics ------------------ None Fabricated ------------ Nothing Alien Tech Used ----------------- None Achievements -------------- None Challenges ------------ None Game ------ Seed FluxMassInitializer Manual? 0 Play Time 00:44:39 Cumulative 624.7 hours Start 2024.01.27 @ 19:32:51 End 2024.01.27 @ 20:18:42 Sessions 1 Manual Loads 0 Difficulty Rogue Special Mode None Game No. 591 Rogue 318 Adventurer 123 Explorer 150 Win Type - Total 25 Types 19/0/4/1/0/0/0/1/0 Lore% 80 Gallery% 91 Achievement% 76 Wizard Run 0 Options --------- ASCII 0 Keyboard 1 Movement Numpad Keybinds 0 Fullscreen 2 Font 18/X11Bold Map View 76x50 Zoom Use 0% Tactical HUD 1 Map Filters NONE Filters NONE Steam 1 RUN: b2c32c24-46c7-4d10-8c3a-a40280d99a4b